bitfinex/quotes_BTCUSD_20241202
["timestamp","ask_amount","ask_price","bid_price","bid_amount"]
[1733136437553,0.04696686,94937.0,94936.0,0.31400852]
[1733136438019,0.04796686,94937.0,94936.0,0.31500852]
[1733136438245,0.04696686,94937.0,94936.0,0.31000852]
[1733136438690,0.04796686,94937.0,94936.0,0.31600852]
[1733136439123,0.04696686,94937.0,94936.0,0.31000852]
[1733136439564,0.04796686,94937.0,94936.0,0.31400852]
[1733136439790,0.04896686,94937.0,94936.0,0.32100852]
[1733136440696,0.04896686,94937.0,94936.0,0.35153852]
[1733136441156,0.04896686,94937.0,94936.0,0.37323852]
[1733136443501,0.04896686,94937.0,94936.0,0.37230852]
[1733136443980,0.04896686,94937.0,94936.0,0.37323852]
[1733136450506,0.02950329,94937.0,94936.0,0.77605652]
[1733136450699,0.02577729,94937.0,94936.0,0.77605652]
[1733136450926,0.04856849,94937.0,94936.0,0.77605652]
[1733136451153,0.03738578,94937.0,94936.0,0.77605652]
[1733136451378,0.05,94940.0,94938.0,0.00093]
[1733136451616,0.00799443,94940.0,94939.0,1.38343707]
[1733136451848,0.0235541,94940.0,94939.0,1.80747221]
[1733136452064,0.0446201,94948.0,94947.0,0.00093]
[1733136452281,0.0017254,94962.0,94948.0,0.15093]
[1733136452507,0.0017254,94962.0,94948.0,0.32993879]
[1733136452732,0.0017254,94962.0,94948.0,0.32807521]
[1733136452957,0.0452181,94949.0,94948.0,0.32807521]
[1733136453196,0.000598,94949.0,94948.0,0.32807521]
[1733136454084,0.001598,94949.0,94948.0,0.33707521]
[1733136454536,0.001598,94949.0,94948.0,0.35093302]
[1733136454982,0.001598,94949.0,94948.0,0.35593302]
[1733136457715,1e-06,94949.0,94948.0,1.23807902]
[1733136458353,0.0017254,94962.0,94959.0,0.00093]
[1733136458565,0.00180096,94962.0,94961.0,0.46345721]
[1733136458993,0.00180096,94962.0,94961.0,0.48608721]
[1733136459200,0.00180096,94962.0,94961.0,0.51568721]
[1733136459419,0.00180096,94962.0,94961.0,0.53868721]
[1733136460103,0.00280096,94962.0,94961.0,0.53868721]
[1733136460777,0.07092223,94988.0,94987.0,0.210555]
[1733136461004,0.07092223,94988.0,94987.0,0.46340021]
[1733136462574,0.0455,95006.0,95005.0,0.210515]
[1733136463082,0.19907,95014.0,95005.0,0.210515]
[1733136463083,0.0455,95014.0,95006.0,0.15]
[1733136463300,0.00031609,95011.0,95010.0,0.360504]
[1733136463572,0.00031609,95011.0,95010.0,0.46334921]
[1733136464010,0.00031609,95011.0,95010.0,0.46352806]
[1733136464755,0.00031609,95011.0,95010.0,0.48512584]
[1733136465145,0.00031609,95011.0,95010.0,0.48812584]
[1733136465361,0.00031609,95011.0,95010.0,0.51112584]
[1733136465569,0.0472244,95032.0,95031.0,0.360457]
[1733136465790,0.0017244,95032.0,95031.0,0.46330221]
[1733136466005,0.0017244,95032.0,95031.0,0.49098089]
[1733136466667,0.0017244,95032.0,95031.0,0.49191089]
[1733136466881,0.0017244,95032.0,95031.0,2.69474389]
[1733136467098,4e-07,95032.0,95031.0,3.94890089]
[1733136467323,0.0007256,95045.0,95031.0,3.94890089]
[1733136467324,0.0007256,95045.0,95043.0,0.210431]
[1733136467533,0.0007256,95045.0,95043.0,0.46513809]
[1733136467761,0.0007256,95045.0,95043.0,0.49083337]
[1733136468448,0.0017254,95061.0,95043.0,0.49083337]
[1733136468449,0.0017254,95061.0,95056.0,0.383402]
[1733136468675,0.0017254,95061.0,95056.0,1.46040521]
[1733136468889,0.00232269,95057.0,95056.0,0.46324721]
[1733136469354,0.00232269,95057.0,95056.0,0.48963564]
[1733136470063,0.00232269,95057.0,95056.0,0.50875629]
[1733136470502,0.00232269,95057.0,95056.0,0.51475629]
[1733136470717,0.00232269,95057.0,95056.0,0.50875629]
[1733136471215,0.00232269,95057.0,95056.0,0.51675629]
[1733136471459,0.00232269,95057.0,95056.0,0.50375629]
[1733136471686,0.00232269,95057.0,95056.0,0.50675629]
[1733136472148,0.00232269,95057.0,95056.0,0.66976629]
[1733136472357,0.00232269,95057.0,95056.0,0.67476629]
[1733136472609,0.00232269,95057.0,95056.0,0.67569629]
[1733136472871,0.00232269,95057.0,95056.0,0.68469629]
[1733136473092,0.00232269,95057.0,95056.0,0.67069629]
[1733136473343,6.9e-07,95057.0,95056.0,0.72337333]
[1733136473583,6.9e-07,95057.0,95056.0,0.56636333]
[1733136473814,0.0017244,95083.0,95059.0,0.00093]
[1733136474040,0.0785,95110.0,95098.0,0.15]
[1733136474268,0.046,95113.0,95106.0,0.46313621]
[1733136474511,0.0785,95122.0,95106.0,0.49818503]
[1733136475227,0.210167,95163.0,95106.0,0.49818503]
[1733136475228,2e-07,95107.0,95106.0,0.53392067]
[1733136475474,0.09907,95144.0,95143.0,0.210209]
[1733136475699,0.09907,95144.0,95143.0,0.31305421]
[1733136476168,0.00017974,95146.0,95143.0,0.31305421]
[1733136476402,0.00017974,95146.0,95145.0,0.210205]
[1733136476633,0.00017974,95146.0,95145.0,0.31491025]
[1733136476874,0.00017974,95146.0,95145.0,0.31305021]
[1733136477131,0.00017974,95146.0,95145.0,0.49839433]
[1733136478498,0.00017974,95146.0,95145.0,0.50039433]
[1733136478718,0.00017974,95146.0,95145.0,0.25484521]
[1733136478992,0.00017974,95146.0,95145.0,0.25984521]
[1733136479454,0.00017974,95146.0,95145.0,0.25784521]
[1733136479695,0.00017974,95146.0,95145.0,0.25284521]
[1733136479912,0.00017974,95146.0,95145.0,0.28818933]
[1733136480132,0.00017974,95146.0,95145.0,0.28918933]
[1733136480363,0.00017974,95146.0,95145.0,0.28818933]
[1733136480831,0.00017974,95146.0,95145.0,0.29018933]
[1733136481941,0.09713047,95152.0,95146.0,0.15]
[1733136482182,0.09713047,95152.0,95148.0,0.15]
[1733136482415,0.19713047,95152.0,95148.0,0.15]
[1733136482640,0.19713047,95152.0,95145.0,0.00217974]
[1733136482641,0.09713047,95146.0,95145.0,0.00117974]
[1733136483188,0.323769,95146.0,95145.0,0.00273801]
[1733136483397,0.08403047,95136.0,95130.0,0.25543908]
[1733136483624,0.08403047,95136.0,95131.0,0.10284521]
[1733136483844,0.08403047,95133.0,95131.0,0.10284521]
[1733136484075,0.08403047,95133.0,95132.0,0.210234]
[1733136484276,0.08403047,95139.0,95132.0,0.31307921]
[1733136484494,0.08403047,95140.0,95137.0,0.210223]
[1733136484734,0.08403047,95140.0,95139.0,0.210218]
[1733136484951,0.12497918,95146.0,95139.0,0.210218]
[1733136484952,0.12497918,95146.0,95143.0,0.210209]
[1733136485182,0.00017918,95146.0,95145.0,0.15]
[1733136485422,0.08403047,95140.0,95137.0,0.210223]
[1733136485644,0.08403047,95140.0,95138.0,0.15]
[1733136485865,0.08403047,95140.0,95139.0,0.210218]
[1733136486088,0.08403047,95140.0,95139.0,0.46606321]
[1733136486507,0.08403047,95140.0,95139.0,0.49139942]
[1733136487037,0.08403047,95140.0,95139.0,0.49439942]
[1733136487261,0.08403047,95140.0,95139.0,0.28418142]
[1733136487692,0.08403047,95140.0,95139.0,0.28118142]
[1733136488171,0.08403047,95140.0,95139.0,0.27818142]
[1733136488667,0.08403047,95140.0,95139.0,0.28218142]
[1733136488892,0.08403047,95140.0,95139.0,0.28318142]
[1733136489405,0.08403047,95140.0,95139.0,0.25784521]
[1733136489662,0.20563047,95140.0,95139.0,0.005]
[1733136489874,0.30563047,95140.0,95139.0,0.005]
[1733136490863,0.30563047,95140.0,95121.0,0.00328742]
[1733136490864,0.18403047,95122.0,95121.0,0.00328742]
[1733136491083,0.18403047,95122.0,95120.0,0.00328742]
[1733136491084,0.26543047,95121.0,95120.0,0.00328742]
[1733136491310,0.08403047,95092.0,95091.0,0.00328742]
[1733136491532,0.08403047,95092.0,95091.0,0.10613263]
[1733136492450,0.18403047,95092.0,95091.0,0.00328742]
[1733136492911,0.18403047,95092.0,95091.0,0.00428742]
[1733136493374,0.18403047,95092.0,95091.0,0.004289]
[1733136495253,0.0472,95095.0,95091.0,0.004289]
[1733136495254,0.08403047,95093.0,95092.0,0.360322]
[1733136495502,0.08403047,95093.0,95092.0,0.46645621]
[1733136495731,0.08403047,95093.0,95092.0,0.25613421]
[1733136496436,0.08403047,95094.0,95093.0,0.21032]
[1733136496659,0.08403047,95098.0,95095.0,0.42063]
[1733136496880,0.08403047,95106.0,95105.0,0.210293]
[1733136497134,0.08403047,95106.0,95105.0,0.31313821]
[1733136497354,0.08403047,95106.0,95105.0,0.46642698]
[1733136498080,0.18603047,95106.0,95105.0,0.00328877]
[1733136498571,0.18403047,95106.0,95105.0,0.00328877]
[1733136499011,0.18603047,95106.0,95105.0,0.00328877]
[1733136499469,0.18603047,95106.0,95096.0,0.19122927]
[1733136499470,0.18403047,95097.0,95096.0,0.19122927]
[1733136499703,0.18403047,95097.0,95059.0,0.05]
[1733136499704,0.18403047,95092.0,95080.0,0.19122927]
[1733136499918,0.18403047,95092.0,95079.0,0.01414556]
[1733136499919,0.23073047,95092.0,95079.0,0.01414556]
[1733136500137,0.23073047,95092.0,95091.0,0.00414878]
[1733136501525,0.23073047,95092.0,95091.0,0.0008601]
[1733136501748,0.23073047,95092.0,95091.0,0.0058601]
[1733136502050,0.23073047,95092.0,95091.0,0.0008601]
[1733136506477,0.13073047,95092.0,95091.0,0.0008601]
[1733136506695,0.13073047,95092.0,95091.0,0.10370531]
[1733136506696,0.08403047,95092.0,95091.0,0.10370531]
[1733136507398,0.08403047,95095.0,95092.0,0.210322]
[1733136507657,0.0454,95105.0,95094.0,0.420636]
[1733136507658,0.08403047,95096.0,95094.0,0.420636]
[1733136507881,0.08403047,95095.0,95094.0,0.210318]
[1733136509061,0.08403047,95095.0,95094.0,0.31316321]
[1733136511239,0.08403047,95099.0,95098.0,0.210309]
[1733136511489,0.210246,95127.0,95098.0,0.210309]
[1733136511490,0.08403047,95106.0,95105.0,0.210293]
[1733136511713,0.08403047,95116.0,95105.0,0.10284521]
[1733136511960,0.0766,95120.0,95100.0,0.210304]
[1733136511961,0.1,95119.0,95106.0,0.4459353]
[1733136512196,0.08403047,95117.0,95116.0,0.210268]
[1733136512421,0.08403047,95117.0,95116.0,0.31311321]
[1733136514129,0.08703047,95119.0,95118.0,0.360265]
[1733136514346,0.08403047,95119.0,95118.0,0.46311021]
[1733136515256,0.08503047,95119.0,95118.0,0.46311021]
[1733136515484,0.08403047,95119.0,95118.0,0.46311021]
[1733136515930,0.08403047,95119.0,95118.0,0.46411021]
[1733136516197,0.08403047,95119.0,95118.0,0.46311021]
[1733136516415,0.08503047,95119.0,95118.0,0.46311021]
[1733136516640,0.18503047,95119.0,95118.0,0.360265]
[1733136517085,0.18403047,95118.0,95111.0,0.21028]
[1733136517311,0.1,95102.0,95101.0,0.210302]
[1733136517545,0.08403047,95093.0,95092.0,0.12737141]
[1733136517765,0.20703047,95093.0,95091.0,0.0008601]
[1733136518023,0.0487,95106.0,95091.0,0.0008601]
[1733136518024,0.20703047,95092.0,95091.0,0.0008601]
[1733136518243,0.29013047,95092.0,95091.0,0.0008601]
[1733136519128,0.29013047,95092.0,95091.0,0.0068601]
[1733136519383,0.29013047,95092.0,95091.0,0.0008601]
[1733136520030,0.29013047,95092.0,95091.0,0.0038601]
[1733136520451,0.29013047,95092.0,95091.0,0.0008601]
[1733136520883,0.28913047,95092.0,95091.0,0.0078601]
[1733136521103,0.28913047,95092.0,95091.0,0.0018601]
[1733136521567,0.28913047,95092.0,95091.0,0.0048601]
[1733136521798,0.33533047,95092.0,95091.0,0.0048601]
[1733136522707,0.33533047,95092.0,95091.0,0.0018601]
[1733136523376,0.33533047,95092.0,95091.0,0.0008601]
[1733136524066,0.33833047,95092.0,95091.0,0.0008601]
[1733136524288,0.33533047,95092.0,95091.0,0.0008601]
[1733136524728,0.34133047,95092.0,95091.0,0.0008601]
[1733136526499,0.006,95092.0,95091.0,0.25470531]
[1733136527224,0.006,95092.0,95091.0,0.27067484]
[1733136527456,0.003,95092.0,95091.0,0.27067484]
[1733136527695,0.005,95092.0,95091.0,0.25470531]
[1733136528153,0.003,95092.0,95091.0,0.25470531]
[1733136528384,0.003,95092.0,95091.0,0.26270531]
[1733136528611,0.08403047,95115.0,95114.0,0.360273]
[1733136528833,0.08403047,95115.0,95114.0,0.46311821]
[1733136530045,0.05428608,95117.0,95116.0,0.210269]
[1733136530270,0.13831655,95117.0,95116.0,0.31311421]
[1733136531456,0.13831655,95117.0,95116.0,0.31411421]
[1733136533120,0.13831655,95117.0,95116.0,0.10384521]
[1733136533383,0.26031655,95117.0,95116.0,0.001]
[1733136534129,0.39031655,95117.0,95116.0,0.001]
[1733136534348,0.39031655,95117.0,95097.0,0.210309]
[1733136534349,0.10703047,95098.0,95097.0,0.210309]
[1733136535801,0.08403047,95096.0,95095.0,0.210315]
[1733136536050,0.10703047,95096.0,95095.0,0.210315]
[1733136537334,0.08403047,95096.0,95095.0,0.211315]
[1733136537584,0.08403047,95096.0,95095.0,0.001]
[1733136538039,0.18303047,95096.0,95095.0,0.001]
[1733136539206,0.18503047,95096.0,95095.0,0.001]
[1733136539429,0.08403047,95095.0,95091.0,0.0008601]
[1733136539647,0.085869,95095.0,95091.0,0.0008601]
[1733136540114,0.18303047,95095.0,95093.0,0.210319]
[1733136540627,0.18198047,95095.0,95094.0,0.0238602]
[1733136540869,0.18298047,95095.0,95094.0,0.0008602]
[1733136541108,0.18498047,95095.0,95094.0,0.0008602]
[1733136541374,0.08598047,95095.0,95094.0,0.0008602]
[1733136541597,0.003,95095.0,95094.0,0.27670541]
[1733136542323,0.13726655,95117.0,95116.0,0.210269]
[1733136542552,0.13726655,95117.0,95116.0,0.33611421]
[1733136543274,0.05428608,95117.0,95116.0,0.33611421]
[1733136543495,0.13726655,95117.0,95116.0,0.33542029]
[1733136543996,0.23626655,95117.0,95116.0,0.001]
[1733136544263,0.36066655,95117.0,95116.0,0.001]
[1733136544973,0.36066655,95117.0,95116.0,0.211269]
[1733136545205,0.36066655,95117.0,95116.0,0.001]
[1733136545712,0.36066655,95117.0,95116.0,0.211269]
[1733136545943,0.27768608,95117.0,95116.0,0.234269]
[1733136546168,0.08298047,95114.0,95113.0,0.023]
[1733136546421,0.18198047,95115.0,95114.0,0.233273]
[1733136546661,0.08298047,95115.0,95114.0,0.233273]
[1733136546976,0.08298047,95116.0,95115.0,0.173]
[1733136547152,0.18198047,95116.0,95115.0,0.173]
[1733136548558,0.05528608,95117.0,95116.0,0.210269]
[1733136548813,0.05428608,95117.0,95116.0,0.48611421]
[1733136549989,0.05428608,95117.0,95116.0,0.48711421]
[1733136550247,0.05428608,95117.0,95116.0,0.49111421]
[1733136550496,0.23626655,95117.0,95116.0,0.237269]
[1733136550717,0.23626655,95117.0,95116.0,0.239269]
[1733136551396,0.05428608,95117.0,95116.0,0.34211421]
[1733136551672,0.05428608,95117.0,95116.0,0.49211421]
[1733136552189,0.05428608,95117.0,95116.0,0.49011421]
[1733136552428,0.05428608,95117.0,95116.0,0.48611421]
[1733136552665,0.05428608,95117.0,95116.0,0.48711421]
[1733136552896,0.05428608,95117.0,95116.0,0.48611421]
[1733136553119,0.05428608,95117.0,95116.0,0.49011421]
[1733136553402,0.05428608,95117.0,95116.0,0.49211421]
[1733136553639,0.05428608,95117.0,95116.0,0.48811421]
[1733136553847,0.05428608,95117.0,95116.0,0.49011421]
[1733136554076,0.05428608,95117.0,95116.0,0.48611421]
[1733136554755,0.05600728,95117.0,95116.0,0.53753374]
[1733136555231,0.05600728,95117.0,95116.0,0.53953374]
[1733136555454,0.03498028,95117.0,95116.0,0.54453374]
[1733136555688,2.8e-07,95117.0,95116.0,0.54253374]
[1733136555952,2.8e-07,95117.0,95116.0,0.53753374]
[1733136556165,2.8e-07,95117.0,95116.0,0.57523336]
[1733136556421,2.8e-07,95117.0,95116.0,0.56623336]
[1733136556647,2.8e-07,95117.0,95116.0,0.57223336]
[1733136556916,0.0017224,95146.0,95138.0,0.38322]
[1733136557107,0.0017224,95146.0,95138.0,0.48606521]
[1733136557318,0.0017202,95152.0,95138.0,0.48606521]
[1733136557319,0.08298047,95166.0,95138.0,0.30581694]
[1733136557535,0.0017242,95213.0,95181.0,0.273]
[1733136557536,7.2e-07,95182.0,95181.0,0.273]
[1733136557749,0.2,95187.0,95186.0,0.273]
[1733136557750,0.15505279,95187.0,95186.0,0.273]
[1733136557988,0.13404179,95187.0,95186.0,0.58595921]
[1733136558410,0.00059784,95187.0,95186.0,0.58595921]
[1733136558617,8.4e-07,95187.0,95186.0,0.60731059]
[1733136559260,8.4e-07,95187.0,95186.0,0.61431059]
[1733136559466,8.4e-07,95187.0,95186.0,0.62331059]
[1733136559672,2.4e-07,95192.0,95191.0,0.483103]
[1733136559915,5.1e-07,95192.0,95191.0,0.58594821]
[1733136561642,5.1e-07,95192.0,95191.0,0.68594821]
[1733136561862,5.1e-07,95192.0,95191.0,0.68894821]
[1733136562306,5.1e-07,95192.0,95191.0,0.69494821]
[1733136562757,5.1e-07,95192.0,95191.0,0.69194821]
[1733136563382,5.1e-07,95192.0,95191.0,0.69494821]
[1733136564243,0.01399697,95202.0,95201.0,0.460081]
[1733136564468,0.01399697,95202.0,95201.0,0.58592621]
[1733136565548,0.01399697,95202.0,95201.0,0.59492621]
[1733136565788,0.01399697,95202.0,95201.0,0.60092621]
[1733136569440,0.01399697,95202.0,95201.0,0.59492621]
[1733136570804,0.01399697,95202.0,95201.0,0.59792621]
[1733136571029,9.7e-07,95202.0,95201.0,0.59792621]
[1733136571244,9.7e-07,95202.0,95201.0,0.58592621]
[1733136571711,9.7e-07,95202.0,95201.0,0.51079521]
[1733136571931,9.7e-07,95202.0,95201.0,0.61079521]
[1733136572151,9.7e-07,95202.0,95201.0,0.51079521]
[1733136572401,9.7e-07,95202.0,95201.0,0.50179521]
[1733136572619,9.7e-07,95202.0,95201.0,0.49979521]
[1733136572878,9.7e-07,95202.0,95201.0,0.50479521]
[1733136573096,9.7e-07,95202.0,95201.0,0.49979521]
[1733136573318,9.7e-07,95202.0,95201.0,0.59979521]
[1733136573959,9.7e-07,95202.0,95201.0,0.60179521]
[1733136574397,9.7e-07,95202.0,95201.0,0.60779521]
[1733136574828,9.7e-07,95202.0,95201.0,0.61079521]
[1733136575056,9.7e-07,95202.0,95201.0,0.51079521]
[1733136575556,9.7e-07,95202.0,95201.0,0.48779521]
[1733136577369,9.7e-07,95202.0,95201.0,0.61079521]
[1733136577587,9.7e-07,95202.0,95201.0,0.61165481]
[1733136577836,0.00172017,95202.0,95201.0,0.51165481]
[1733136578058,0.00172017,95202.0,95201.0,0.61165481]
[1733136578529,0.00172017,95202.0,95201.0,0.51165481]
[1733136579248,0.00172017,95202.0,95201.0,0.48865481]
[1733136579469,0.0781,95210.0,95209.0,0.360064]
[1733136579686,0.0781,95210.0,95209.0,0.46290921]
[1733136580835,0.0781,95210.0,95209.0,0.47290921]
[1733136581268,0.0781,95210.0,95209.0,0.46290921]
[1733136581496,0.0781,95210.0,95209.0,0.46490921]
[1733136581735,0.0781,95210.0,95209.0,0.46290921]
[1733136582170,0.0781,95210.0,95209.0,0.46990921]
[1733136582388,0.0781,95210.0,95209.0,0.46290921]
[1733136582623,0.0731,95210.0,95209.0,0.46290921]
[1733136584464,0.0731,95210.0,95209.0,0.46590921]
[1733136585165,0.0731,95210.0,95209.0,0.46490921]
[1733136586530,0.0577085,95248.0,95219.0,0.0422915]
[1733136586745,0.00017913,95233.0,95219.0,0.0422915]
[1733136587228,0.00017913,95233.0,95220.0,0.210039]
[1733136587720,0.00017913,95233.0,95221.0,0.210037]
[1733136587945,0.00017913,95233.0,95223.0,0.12708108]
[1733136588379,0.00017913,95233.0,95228.0,0.420041]
[1733136588599,0.00017913,95233.0,95227.0,0.0422915]
[1733136588843,0.00017913,95233.0,95223.0,0.12708108]
[1733136588844,0.00017913,95233.0,95223.0,0.16937258]
[1733136589095,0.00117913,95233.0,95223.0,0.16937258]
[1733136589560,0.1268,95232.0,95223.0,0.16937258]
[1733136590025,0.1218,95232.0,95223.0,0.16937258]
[1733136590684,0.1218,95232.0,95223.0,0.0422915]
[1733136591640,0.1228,95232.0,95223.0,0.0422915]
[1733136592759,0.1228,95232.0,95224.0,0.15]
[1733136593001,0.1228,95232.0,95226.0,0.15]
[1733136594447,0.1218,95232.0,95227.0,0.210024]
[1733136594674,0.1218,95232.0,95226.0,0.15]
[1733136594910,0.1228,95232.0,95231.0,0.15]
[1733136595152,0.0751,95232.0,95231.0,0.25]
[1733136595657,0.0741,95232.0,95231.0,0.25]
[1733136595876,0.0751,95232.0,95231.0,0.25]
[1733136596126,0.00017913,95233.0,95232.0,0.310013]
[1733136596348,0.00017913,95233.0,95232.0,0.460013]
[1733136597268,0.00017913,95233.0,95232.0,0.360013]
[1733136597509,0.00017913,95233.0,95232.0,0.460013]
[1733136597744,0.00017913,95233.0,95232.0,0.360013]
[1733136598440,0.00117913,95233.0,95232.0,0.360013]
[1733136601264,0.00117913,95233.0,95231.0,0.1]
[1733136601499,0.00117913,95233.0,95231.0,0.15]
[1733136601944,0.00117913,95233.0,95232.0,0.360013]
[1733136602185,0.00017913,95233.0,95232.0,0.360013]
[1733136602701,0.00117913,95233.0,95232.0,0.360013]
[1733136603440,0.0154325,95233.0,95232.0,0.360013]
[1733136603699,0.00117913,95233.0,95229.0,0.15]
[1733136603918,0.00117913,95233.0,95231.0,0.15]
[1733136604142,0.00117913,95233.0,95232.0,0.15]
[1733136604359,0.00217913,95233.0,95232.0,0.15]
[1733136604852,0.00017913,95233.0,95232.0,0.15]
[1733136605111,0.00017913,95233.0,95232.0,0.360013]
[1733136605332,0.00117913,95233.0,95232.0,0.360013]
[1733136605550,0.00017913,95233.0,95232.0,0.360013]
[1733136605770,0.00117913,95233.0,95232.0,0.360013]
[1733136605993,0.00017913,95233.0,95232.0,0.360013]
[1733136606395,0.00017913,95233.0,95232.0,0.362013]
[1733136606652,0.00017913,95233.0,95232.0,0.60714971]
[1733136607893,0.00017913,95233.0,95232.0,0.6190224]
[1733136608767,0.00017913,95233.0,95232.0,0.6210224]
[1733136609004,0.00017913,95233.0,95232.0,0.6190224]
[1733136609426,0.00017913,95233.0,95232.0,0.6210224]
[1733136609663,0.00017913,95233.0,95232.0,0.6220224]
[1733136611268,0.00017913,95233.0,95232.0,0.5220224]
[1733136611459,0.00017913,95233.0,95232.0,0.6220224]
[1733136611940,0.00017913,95233.0,95232.0,0.22688569]
[1733136612171,0.00017913,95233.0,95232.0,0.01687269]
[1733136612630,0.00017913,95233.0,95230.0,0.420034]
[1733136612842,0.00017913,95233.0,95232.0,0.002]
[1733136613082,0.00017913,95233.0,95232.0,0.002862]
[1733136614004,0.00190313,95233.0,95232.0,0.002862]
[1733136614247,0.00190313,95233.0,95232.0,0.000862]
[1733136619908,0.00160313,95233.0,95232.0,0.000862]
[1733136632853,0.00865166,95233.0,95232.0,0.000862]
[1733136634245,0.00160313,95233.0,95232.0,0.000862]
[1733136637290,0.00160313,95233.0,95232.0,0.250862]
[1733136637508,0.00160313,95233.0,95232.0,0.150862]
[1733136637983,0.00160313,95233.0,95232.0,0.250862]
[1733136638442,0.00260313,95233.0,95232.0,0.150862]
[1733136638872,0.00160313,95233.0,95232.0,0.150862]
[1733136639089,0.00160313,95233.0,95232.0,0.250862]
[1733136639323,0.00360313,95233.0,95232.0,0.150862]
[1733136640005,0.00360313,95234.0,95233.0,0.360011]
[1733136640249,0.00360313,95234.0,95233.0,0.36019013]
[1733136640711,0.0467,95243.0,95238.0,0.209999]
[1733136640996,0.02153847,95239.0,95234.0,0.210009]
[1733136641216,0.00705502,95242.0,95238.0,0.21]
[1733136641903,0.00705502,95242.0,95234.0,0.210009]
[1733136642131,0.00705502,95242.0,95235.0,0.210006]
[1733136642349,0.00705502,95242.0,95239.0,0.209997]
[1733136642590,0.0467,95243.0,95236.0,0.210004]
[1733136642824,0.00705502,95242.0,95233.0,0.21018813]
[1733136643059,0.02075306,95240.0,95233.0,0.00017913]
[1733136643278,0.02075306,95240.0,95234.0,0.210009]
[1733136643528,0.00705502,95239.0,95234.0,0.210009]
[1733136644400,0.0205681,95241.0,95234.0,0.210009]
[1733136644638,0.0467,95243.0,95234.0,0.210009]
[1733136644918,0.00705502,95242.0,95233.0,0.00017913]
[1733136645155,0.02763994,95242.0,95238.0,0.209998]
[1733136645394,0.02763994,95242.0,95239.0,0.209997]
[1733136646056,0.02058492,95242.0,95239.0,0.209997]
[1733136647246,0.02058492,95242.0,95237.0,0.15]
[1733136648617,0.02058492,95242.0,95233.0,0.00017913]
[1733136648618,0.02058492,95242.0,95238.0,0.21]
[1733136649044,0.02230892,95242.0,95238.0,0.21]
[1733136649323,0.02230892,95242.0,95238.0,0.42]
[1733136650476,0.02230892,95242.0,95241.0,0.209993]
[1733136652880,0.02230892,95242.0,95240.0,0.0501]
[1733136653580,0.01608327,95241.0,95240.0,0.0501]
[1733136653802,0.022424,95241.0,95240.0,0.0501]
[1733136654017,0.00634073,95241.0,95240.0,0.0501]
[1733136654676,0.02230892,95242.0,95240.0,0.0501]
[1733136655591,0.00634073,95241.0,95240.0,0.0501]
[1733136659723,0.02230892,95242.0,95240.0,0.0501]
[1733136659957,0.00570665,95241.0,95240.0,0.0501]
[1733136660250,0.00570665,95241.0,95240.0,0.260095]
[1733136660443,0.00570665,95241.0,95240.0,0.0501]
[1733136660683,0.00970665,95241.0,95240.0,0.0511]
[1733136661807,0.004,95241.0,95240.0,0.0511]
[1733136662763,0.004,95241.0,95240.0,0.2011]
[1733136663458,0.004,95241.0,95240.0,0.3433915]
[1733136663933,0.006,95241.0,95240.0,0.3433915]
[1733136664156,0.006,95241.0,95240.0,0.46923671]
[1733136664374,0.004,95241.0,95240.0,0.46923671]
[1733136664645,0.001724,95242.0,95241.0,0.5252845]
[1733136664892,0.001724,95242.0,95241.0,0.70332971]
[1733136665366,0.0017238,95246.0,95241.0,0.70332971]
[1733136665604,0.0017238,95246.0,95245.0,0.482984]
[1733136665827,0.0017238,95246.0,95245.0,0.58582921]
[1733136666070,0.0017238,95246.0,95245.0,0.62812071]
[1733136667960,0.0017238,95246.0,95245.0,0.41282921]
[1733136668217,0.0017238,95246.0,95245.0,0.214984]
[1733136668466,0.0017238,95246.0,95245.0,0.222984]
[1733136668677,0.0017238,95246.0,95241.0,0.209993]
[1733136669121,0.0017238,95246.0,95240.0,0.2501]
[1733136669122,0.0813,95245.0,95240.0,0.2501]
[1733136669335,0.0095,95243.0,95240.0,0.2]
[1733136669981,0.0077352,95242.0,95240.0,0.2]
[1733136670626,0.2077352,95242.0,95240.0,0.2]
[1733136671309,0.2077352,95242.0,95240.0,0.201]
[1733136671528,0.0077352,95242.0,95240.0,0.2]
[1733136671765,0.0167352,95242.0,95240.0,0.2]
[1733136672462,0.0167352,95242.0,95240.0,0.2008619]
[1733136673152,0.04199723,95242.0,95240.0,0.2008619]
[1733136673389,0.209993,95241.0,95240.0,0.2008619]
[1733136673830,0.00767976,95241.0,95240.0,0.2008619]
[1733136674268,0.08657976,95241.0,95240.0,0.2008619]
[1733136674709,0.08957976,95241.0,95240.0,0.2008619]
[1733136674942,0.09457976,95241.0,95240.0,0.2008619]
[1733136675161,0.17433627,95241.0,95240.0,0.2008619]
[1733136675386,0.19566006,95241.0,95240.0,0.2008619]
[1733136676014,0.11590355,95241.0,95240.0,0.2008619]
[1733136679195,0.09457976,95241.0,95240.0,0.2008619]
[1733136679668,0.29457976,95241.0,95240.0,0.2008619]
[1733136681088,0.31571966,95241.0,95240.0,0.2008619]
[1733136681533,0.11571966,95241.0,95240.0,0.2008619]
[1733136683343,0.03681966,95241.0,95240.0,0.2008619]
[1733136683593,0.01567976,95241.0,95240.0,0.2008619]
[1733136683836,0.008,95241.0,95240.0,0.2008619]
[1733136685242,0.0017238,95246.0,95240.0,0.2008619]
[1733136685243,0.209987,95244.0,95240.0,0.2008619]
[1733136685474,0.004,95241.0,95240.0,0.2008619]
[1733136686598,0.007,95241.0,95240.0,0.2008619]
[1733136686809,0.003,95241.0,95240.0,0.2008619]
[1733136687029,0.0017238,95243.0,95240.0,0.2008619]
[1733136687496,0.008,95241.0,95240.0,0.2008619]
[1733136687935,0.003,95241.0,95240.0,0.2008619]
[1733136688218,0.005,95241.0,95240.0,0.2008619]
[1733136690589,0.008,95241.0,95240.0,0.2008619]
[1733136693328,0.008,95241.0,95240.0,0.14311336]
[1733136693984,0.0017238,95243.0,95241.0,0.209993]
[1733136695528,0.0017238,95243.0,95242.0,0.25]
[1733136695768,0.0017238,95243.0,95242.0,0.15]
[1733136696002,0.0017238,95243.0,95242.0,0.25]
[1733136696218,0.0047238,95243.0,95242.0,0.25]
[1733136696661,0.0057238,95243.0,95242.0,0.25]
[1733136697105,0.0027238,95243.0,95242.0,0.15]
[1733136697382,0.0047238,95243.0,95242.0,0.15]
[1733136697616,0.0047238,95243.0,95240.0,0.14311336]
[1733136697838,0.0792,95242.0,95240.0,0.14311336]
[1733136698063,0.08693395,95242.0,95240.0,0.14311336]
[1733136698826,0.0792,95242.0,95240.0,0.14311336]
[1733136699010,0.00773395,95241.0,95240.0,0.14311336]
[1733136699437,0.0037238,95243.0,95241.0,0.209993]